Cogmind - Beta 10.2 @@@ ROGUE MODE // 2021.08.25 @ 05:44:50 Player: wildgoose Result: Destroyed by Y-45 Defender with Beam Rifle Performance ------------- Evolutions (2) 1000 Regions Visited (4) 800 Robots Destroyed (54) 270 Value Destroyed (1377) 1377 Prototype IDs (1) 20 Alien Tech Used (0) 0 Bonus (-216) -216 TOTAL SCORE: 3251 Bonus ------- High Alert Combat Kills 28 Follower Combat Kills 132 Friendly Fire -376 Cogmind --------- Core Integrity 0/550 Matter 258/300 Energy 99/100 System Corruption 1% Temperature Cool (9) Movement Core (550) Ox10 Location -8/Materials Parts ------- > --- POWER (1) -------- (None) > --- PROPULSION (3) --- (None) > --- UTILITY (4) ------ Large Storage Unit Large Storage Unit > --- WEAPON (3) ------- (None) > --- INVENTORY (16) --- Nuclear Core Nuclear Core Light Nuclear Core Large Storage Unit Large Battery (300) Large Battery (300) Large Battery (300) High-capacity Matter Pod (200) Peak State ------------ > --- POWER ------------ Nuclear Core > --- PROPULSION ------- Light Treads Light Treads Improved Treads > --- UTILITY ---------- Large Storage Unit Large Storage Unit Large Battery Improved Terrain Scanner > --- WEAPON ----------- Improved Medium Laser Minigun Rocket Launcher > --- INVENTORY -------- Nuclear Core Nuclear Core Nuclear Core Light Nuclear Core Light Treads Light Treads Wheel Large Storage Unit Large Battery Large Battery Large Battery High-capacity Matter Pod Heavy Assault Rifle Rocket Launcher [Rating: 22] Favorites ----------- Power Nuclear Core Engine Ion Engine Power Core Nuclear Core Propulsion Light Treads Treads Light Treads Wheel Wheel Utility Large Storage Unit Device Improved Terrain Scanner Storage Large Storage Unit Protection Hardened Light Armor Plating Weapon Rocket Launcher Energy Gun Improved Medium Laser Energy Cannon Beam Cannon Ballistic Gun Minigun Launcher Rocket Launcher Build | -11 -10 -9 -9 -8 ------- Run | Scr Mat Mat Sto Mat Slots Evolved 4 | . . 2 . 2 Power . | . . . . . Propulsion 1 | . . . . 1 Utility 2 | . . 1 . 1 Weapon 1 | . . 1 . . Parts Attached 37 | 5 7 9 8 8 Power 4 | 1 . 2 . 1 Engine 1 | 1 . . . . Core 3 | . . 2 . 1 Reactor . | . . . . . Propulsion 12 | 2 . 1 5 4 Treads 11 | 2 . 1 5 3 Leg . | . . . . . Wheel 1 | . . . . 1 Hover . | . . . . . Flight . | . . . . . Utility 8 | 1 2 3 1 1 Device 1 | . . . 1 . Storage 5 | 1 . 3 . 1 Processor . | . . . . . Hackware . | . . . . . Protection 2 | . 2 . . . Artifact . | . . . . . Weapon 13 | 1 5 3 2 2 Energy Gun 1 | . . . 1 . Energy Cannon 2 | . 1 1 . . Ballistic Gun 6 | 1 2 1 1 1 Ballistic Cannon . | . . . . . Launcher 4 | . 2 1 . 1 Special Weapon . | . . . . . Impact Weapon . | . . . . . Slashing Weapon . | . . . . . Piercing Weapon . | . . . . . Special Melee Weapon . | . . . . . Unidentified Prototypes 1 | . . . 1 . Parts Lost 16 | . . . 1 15 Power 2 | . . . . 2 Propulsion 6 | . . . . 6 Utility 2 | . . . . 2 Weapon 6 | . . . 1 5 Highest Loss Streak 12 | . . . 1 12 Average Slot Usage (%) 93 | . 92 89 98 76 Engine 1 | . 14 . . . Core 9 | . . 10 11 6 Treads 22 | . 28 22 21 21 Device 2 | . . . 4 5 Storage 24 | . 14 16 28 24 Protection 2 | . 7 6 . . Energy Gun 5 | . . . 8 5 Energy Cannon 5 | . 12 11 2 . Ballistic Gun 8 | . 1 10 9 6 Launcher 10 | . 13 11 11 5 Naked Turns . | . . . . . Heaviest Build 53 | 10 21 52 52 53 Greatest Support 63 | 40 40 40 43 63 Greatest Overweight (x) 17 | . . 1 17 10 Average Overweight (x) . | . . . 1 . Largest Inventory Capacity 16 | 6 6 16 16 16 Average Capacity 13 | 5 6 8 16 16 Most Carried 16 | 4 6 11 16 15 Average Carried 11 | 2 5 6 15 12 Final Capacity 16 | 6 6 16 16 16 Final Carried 16 | 4 6 11 16 8 Class Distribution -------------------- 24% | Skirmisher 24% | Mutant 15% | Commander-Bomber 14% | Gunner 13% | Tank 4% | Commander-Gunner Dominant Class ---------------- Mutant | -10/Materials Tank | -9/Materials Skirmisher | -9/Storage Mutant | -8/Materials Resources | -11 -10 -9 -9 -8 ----------- Run | Scr Mat Mat Sto Mat Matter Collected 1280 | 207 36 406 485 146 Remotely . | . . . . . Salvage Created 1481 | . 128 522 633 198 Parts 103 | . 8 42 41 12 Haulers Intercepted 3 | . . . 2 1 Recyclers Shooed 1 | . . . 1 . Parts Field Recycled . | . . . . . Retrieved Matter . | . . . . . Parts Self-Destructed . | . . . . . Prevented . | . . . . . Kills | -11 -10 -9 -9 -8 ------- Run | Scr Mat Mat Sto Mat Combat Hostiles Destroyed 32 | . 5 12 14 1 Guns 5 | . . 2 2 1 Cannons 7 | . . 6 1 . AOE 20 | . 5 4 11 . Classes Destroyed 10 | . 1 6 3 . Worker 5 | . . 1 3 1 Builder 4 | . . 2 1 1 Hauler 3 | . . . 2 1 Recycler 3 | . . . 2 1 Mechanic 1 | . . 1 . . Watcher 4 | . . 2 1 1 Swarmer 4 | . . . 4 . Grunt 23 | . 5 8 9 1 Brawler 1 | . . 1 . . Sentry 6 | . . 3 3 . Best Kill Streak 7 | . 5 7 6 6 Combat Bots Only 5 | . 5 4 4 1 Max Kills in Single Turn 6 | . 2 3 6 2 Gunslinging . | . . . . . Exploded 4 | . 2 1 4 . Melee . | . . . . . Uniques/NPCs Destroyed . | . . . . . Combat | -11 -10 -9 -9 -8 -------- Run | Scr Mat Mat Sto Mat Damage Taken 3185 | . 210 584 277 2114 Core 721 | . . 154 15 552 Absorbed by Shields . | . . . . . Core Remaining (%) 85 | 100 100 . 57 . Volleys Fired 61 | . 5 24 21 11 Largest 3 | . 2 3 3 3 Hottest 120 | . 90 120 118 114 Shots Fired 159 | . 10 63 55 31 Gun 70 | . . 23 26 21 Cannon 35 | . 5 21 9 . Launcher 54 | . 5 19 20 10 Special . | . . . . . Kinetic 48 | . . 23 14 11 Thermal 57 | . 5 21 21 10 Explosive 54 | . 5 19 20 10 Electromagnetic . | . . . . . Robot Hit Streak 14 | . 3 8 14 6 Robot Miss Streak 4 | . 1 3 4 2 Penetration Max . | . . . . . Secondary Targets . | . . . . . Shots Hit Robots 91 | . 6 37 30 18 Core Hits 89 | . 7 24 36 22 Critical Hits 1 | . . 1 . . Critical Kills . | . . . . . Critical Parts Destroyed 1 | . . 1 . . Melee Attacks . | . . . . . Impact . | . . . . . Slashing . | . . . . . Piercing . | . . . . . Sneak Attacks . | . . . . . Combat Hostiles . | . . . . . Follow-up Attacks . | . . . . . Damage Inflicted 3847 | . 269 1221 1570 787 Guns 586 | . . 231 239 116 Cannons 331 | . 18 226 87 . Explosions 2901 | . 251 755 1237 658 Melee . | . . . . . Ramming 29 | . . 9 7 13 Kinetic 379 | . . 231 118 30 Thermal 538 | . 18 226 208 86 Explosive 2901 | . 251 755 1237 658 Electromagnetic . | . . . . . Impact . | . . . . . Slashing . | . . . . . Piercing . | . . . . . Highest Corruption 1 | . . . . 1 Average Corruption 1 | . . . . 1 Corruption Purged . | . . . . . Effects 1 | . . . . 1 Message Errors 1 | . . . . 1 Overload Shots . | . . . . . Overflow Damage 95 | . . . 42 53 Projectiles 5 | . . . 5 . Explosions 90 | . . . 37 53 Melee . | . . . . . Knockbacks . | . . . . . Impact . | . . . . . Kinetic . | . . . . . Secondary . | . . . . . Self-Inflicted Damage 618 | . 157 199 147 115 Shots 17 | . 3 5 6 3 Rammed 6 | . . 2 3 1 Targets Rammed 6 | . . 2 3 1 Kicked . | . . . . . Crushed . | . . . . . Highest Temperature 367 | . 155 367 231 233 Average Temperature 103 | . 73 131 68 102 Received Heat Transfer 969 | . 30 171 57 711 Effects 3 | . . 3 . . Interference 2 | . . 2 . . Damage (minor) 1 | . . 1 . . Siege Activations . | . . . . . Robots Corrupted . | . . . . . Combat Hostiles . | . . . . . Parts Fried . | . . . . . Impact Corruptions . | . . . . . Robots Melted . | . . . . . Combat Hostiles . | . . . . . Parts Melted . | . . . . . Heat Transferred 1147 | . 37 481 444 185 Parts Sabotaged . | . . . . . Parts Stolen . | . . . . . Parts Stripped . | . . . . . Power Chain Reactions . | . . . . . Missiles Intercepted . | . . . . . Alert | -11 -10 -9 -9 -8 ------- Run | Scr Mat Mat Sto Mat Peak Influence 483 | . 160 483 417 197 Initial 138 | . . 67 138 63 Average 181 | . 47 279 189 77 Maximum Alert Level 2 | . . 2 2 . Low Security (%) 62 | 100 100 21 63 100 Level 1 28 | . . 55 29 . Level 2 8 | . . 23 6 . Level 3 . | . . . . . Level 4 . | . . . . . Level 5 . | . . . . . High Security . | . . . . . Max Security . | . . . . . Squads Dispatched 9 | . 3 1 3 2 Investigation 2 | . 2 . . . Extermination . | . . . . . Reinforcement 7 | . 1 1 3 2 Assault . | . . . . . Garrison . | . . . . . Intercept . | . . . . . Construction Impeded 1 | . . . . 1 Haulers Reinforced . | . . . . . Stealth | -11 -10 -9 -9 -8 --------- Run | Scr Mat Mat Sto Mat Distress Signals 3 | . . 1 1 1 Communications Jammed . | . . . . . Distress Signals . | . . . . . Times Spotted 59 | . 7 15 22 15 Peak Tracking Total 11 | . 5 4 4 11 Tactical Retreats 1 | . . . . 1 Traps | -11 -10 -9 -9 -8 ------- Run | Scr Mat Mat Sto Mat Traps Triggered 4 | . 1 . 3 . Indirectly . | . . . . . Trap Hack Attempts . | . . . . . Triggered . | . . . . . Disarmed . | . . . . . Reprogrammed 4 | . . . 4 . Reused . | . . . . . Traps Extracted . | . . . . . Installed . | . . . . . Triggered . | . . . . . Machines | -11 -10 -9 -9 -8 ---------- Run | Scr Mat Mat Sto Mat Machines Disabled 13 | . 1 3 6 3 Max in Single Turn 2 | . 1 1 2 2 Machines Sabotaged . | . . . . . Garrisons Compromised . | . . . . . Overloaded Fab Kills . | . . . . . Fab Network Shutdowns . | . . . . . Hacking | -11 -10 -9 -9 -8 --------- Run | Scr Mat Mat Sto Mat Machines Accessed 9 | . 2 1 5 1 Terminals 4 | . 1 . 2 1 Fabricators . | . . . . . Repair Stations 2 | . . . 2 . Recycling Units 2 | . 1 . 1 . Scanalyzers 1 | . . 1 . . Garrison Access . | . . . . . Total Hacks 21 | . 4 1 14 2 Successful 17 | . 3 1 11 2 Failed 4 | . 1 . 3 . Catastrophic . | . . . . . Database Lockouts . | . . . . . Manual . | . . . . . Terminals 9 | . 1 . 6 2 Fabricators . | . . . . . Repair Stations 7 | . . . 7 . Recycling Units 4 | . 3 . 1 . Scanalyzers 1 | . . 1 . . Garrison Access . | . . . . . Terminal Hacks 7 | . 1 . 4 2 Record 2 | . . . 2 . Alert Level 1 | . 1 . . . Unreport Threat 2 | . . . 1 1 Reprogram Traps 1 | . . . 1 . Zone Layout 1 | . . . . 1 Fabricator Hacks . | . . . . . Repair Station Hacks 6 | . . . 6 . Scan Component 3 | . . . 3 . Repair 3 | . . . 3 . Recycling Unit Hacks 3 | . 2 . 1 . Process 1 | . . . 1 . Retrieve Matter 2 | . 2 . . . Scanalyzer 1 | . . 1 . . Insert Component 1 | . . 1 . . Garrison Access Hacks . | . . . . . Unauthorized Hacks . | . . . . . Terminals . | . . . . . Fabricators . | . . . . . Repair Stations . | . . . . . Recycling Units . | . . . . . Scanalyzers . | . . . . . Garrison Access . | . . . . . Data Cores Recovered . | . . . . . Used . | . . . . . Hacking Detections 6 | . 1 . 4 1 Full Trace Events 3 | . 1 . 2 . Feedback Events . | . . . . . Feedback Blocked . | . . . . . Robot Schematics Acquired . | . . . . . Robots Built . | . . . . . Matter . | . . . . . Time . | . . . . . Total Robot Build Rating . | . . . . . Part Schematics Acquired . | . . . . . Parts Built . | . . . . . Matter . | . . . . . Time . | . . . . . Total Part Build Rating . | . . . . . Parts Repaired 3 | . . . 3 . Time 90 | . . . 90 . Parts Recycled . | . . . . . Recycled Matter 106 | . . . 106 . Retrieved Matter . | . . . . . Retrieved Components . | . . . . . Parts Scanalyzed . | . . . . . Part Schematics Acquired . | . . . . . Parts Damaged . | . . . . . Bothacking | -11 -10 -9 -9 -8 ------------ Run | Scr Mat Mat Sto Mat Used RIF Installer . | . . . . . Robots Hacked . | . . . . . Non-combat . | . . . . . Combat . | . . . . . Robot Hacks Applied . | . . . . . Relay Couplers Released . | . . . . . Robots Rewired . | . . . . . Allies Hacked . | . . . . . Hacks Repelled . | . . . . . Allies | -11 -10 -9 -9 -8 -------- Run | Scr Mat Mat Sto Mat Total Allies 10 | . . . 10 . Largest Group 10 | . . . 10 . Highest-Rated Group 88 | . . . 88 . Highest-Rated Ally 16 | . . . 16 . Total Orders . | . . . . . Ally Attacks 20 | . . . 20 . Total Damage 249 | . . . 249 . Kills 5 | . . . 5 . Allies Corrupted . | . . . . . Allies Melted . | . . . . . Intel | -11 -10 -9 -9 -8 ------- Run | Scr Mat Mat Sto Mat Robot Analysis Total . | . . . . . Derelict Logs Recovered . | . . . . . Drone Launches . | . . . . . Drone Recoveries . | . . . . . Exploration | -11 -10 -9 -9 -8 ------------- Run | Scr Mat Mat Sto Mat Turns Passed 2623 | 70 239 565 1524 225 Spaces Moved 1335 | 40 129 274 783 109 Core 11 | 6 . . 2 3 Treads 1320 | 34 129 274 781 102 Legs . | . . . . . Wheels 4 | . . . . 4 Hover . | . . . . . Flight . | . . . . . Fastest Speed 50 | 50 160 160 180 110 Average Speed 174 | 143 160 165 181 171 Slowest Speed 900 | 160 160 180 900 550 Overloaded Moves . | . . . . . Propulsion Burnouts . | . . . . . Robots Hopped . | . . . . . Cave-ins Triggered . | . . . . . Exploration Rate (%) 30 | 5 27 26 80 15 Regions Visited 4 Branch Regions 1 Pre-discovered Areas . | . . . . . Known Exits Taken . | . . . . . Unknown Exits Taken 4 | 1 1 1 1 . Scrap Searched . | . . . . . Spaces Dug . | . . . . . Terrain Destroyed 401 | . 37 123 139 102 Melee . | . . . . . Projectile . | . . . . . AOE 401 | . 37 123 139 102 Terrain Rammed . | . . . . . Walls Destroyed . | . . . . . Machines Disabled . | . . . . . Actions | -11 -10 -9 -9 -8 --------- Run | Scr Mat Mat Sto Mat Total 1524 | 53 154 345 843 129 Wait . | . . . . . Move 1331 | 39 128 273 782 109 Hop . | . . . . . Pick Up 58 | 9 8 22 19 . Fast Attach . | . . . . . Attach 26 | 5 4 5 4 8 Detach 2 | . 2 . . . Swap 11 | . 3 4 4 . Drop 27 | . 4 15 8 . Fire 61 | . 5 24 21 11 Melee . | . . . . . Ram . | . . . . . Kick . | . . . . . Crush 6 | . . 2 3 1 Escape Stasis 2 | . . . 2 . Rewire . | . . . . . Trap . | . . . . . Miscellaneous . | . . . . . Route ------- -11/Scrapyard -10/Materials -9/Materials -9/Storage -8/Materials History --------- Turn | Location | Event 2 | -11/Scrapyard | Met Revision 17 10 | -11/Scrapyard | Discovered new exit (range 15) 71 | -11/Scrapyard | Entered Materials 266 | -10/Materials | Discovered new exit (range 15) 310 | -10/Materials | Entered another Materials area 310 | -9/Materials | Evolved 2 slots: Utility x1, Weapon x1 627 | -9/Materials | Build established: Tank 635 | -9/Materials | Discovered new exit (range 7) 875 | -9/Materials | Entered Storage 934 | -9/Storage | Build established: Gunner 1277 | -9/Storage | Assisted by bots powering up and referring to "LRC-V3" 1491 | -9/Storage | Repaired Nuclear Core 1523 | -9/Storage | Repaired Lgt. Treads 1579 | -9/Storage | Repaired Lgt. Treads 1719 | -9/Storage | Build established: Commander-Bomber 2154 | -9/Storage | Build established: Skirmisher 2345 | -9/Storage | Discovered new exit (range 16) 2399 | -9/Storage | Entered Materials 2399 | -8/Materials | Evolved 2 slots: Propulsion x1, Utility x1 2562 | -8/Materials | Core integrity fell below 50% 2595 | -8/Materials | Lost 12 parts (2p3n2u5w) 2614 | -8/Materials | Core integrity fell below 20% 2624 | -8/Materials | Destroyed by Y-45 Defender with Beam Rifle Last Messages --------------- K-01 Serf collects debris. Penetrated by Slug. Y-45 Defender suffers critical hit. Hvy. Assault Rifle destroyed. System corrupted by crushing effect (+1). Imp. Treads destroyed. Penetrated by Slug. The unstable cave ceiling collapses. JID99IYZVXTR7PR The unstable cave ceiling collapses. Penetrated by Slug. R-06 Scavenger collects Sml. Matter Pod. Penetrated by Slug. Nuclear Core destroyed. Penetrated by Slug. Lrg. Battery destroyed. B-36 Bruiser destroyed. R-06 Scavenger collects Lgt. Treads. Lgt. Treads destroyed. Wheel destroyed. Map ----- +----------------------------------------------------+ | ???????????????????????##+####### # ## | | ???????????????????????# + % ## ####? | | ???????????????????????# ######## ##### #???? | | ???????????????????????# ########## %## ## #???? | | ???????????????????????# # = ####? ##??? | | ???????????????????????# # """ """ #?? ??????? | | ???????????????????????+ # """ """ #?????????? | | ???????????????????????# # """ """ #?????????? | | ???????????????????????# / #?????????? | | ???????????????????????# # #?????????? | | ???????????????????????# g##############?????????? | | ???????????????????????# #?? #???????????????? | | ???????????????????????# # """" ????????????????? | | ???????????????????????# / """" ????????????????? | | ???????????????????????# g# """" ????????????????? | | ???????????????????????#Y #?? #???????????????? | | ???????????????????????# #????###???????????????? | | ???????????????????????# #??????????????????????? | | ???????????????????????# #??????????????????????? | | ???????????????????????# #??????????????????????? | | ???????????????????????# #??????????????????????? | | ???????????????????????# #??????????????????????? | | ???????????????????????# #??????????????????????? | | ???????????????????????# #??????????????????????? | | ???????????????????????# #??????????????????????? | | ???????????????????????# @#??????????????????????? | | ???????????????????? ?????????????????????? | | ???????????????? t ???????????????????? | | ?????????????# ############+##??????????????????? | | ?????????????????????????????????????????????????? | | ?????????????????????????????????????????????????? | | ?????????????????????????????????????????????????? | | ?????????????????????????????????????????????????? | | ?????????????????????????????????????????????????? | | ?????????????????????????????????????????????????? | | ?????????????????????????????????????????????????? | | ?????????????????????????????????????????????????? | | ?????????????????????????????????????????????????? | | ?????????????????????????????????????????????????? | | ?????????????????????????????????????????????????? | | ?????????????????????????????????????????????????? | | ?????????????????????????????????????????????????? | | ?????????????????????????????????????????????????? | | ?????????????????????????????????????????????????? | | ?????????????????????????????????????????????????? | | ?????????????????????????????????????????????????? | | ?????????????????????????????????????????????????? | | ?????????????????????????????????????????????????? | | ?????????????????????????????????????????????????? | | | +----------------------------------------------------+ Best States ------------- Heat Dissipation 31 Energy Generation 14 Energy Capacity 540 Matter Stores 300 Matter Capacity 300 Sight Range 16 Terrain Scan Range 16 Terrain Scan Density 10 Armor Coverage 150 Evasion (%) 40 Recoil Reduction 3 Item Schematics ----------------- None Robot Schematics ------------------ None Fabricated ------------ Nothing Alien Tech Used ----------------- None Achievements -------------- None Challenges ------------ None Game ------ Seed LobotomySupercompositeSlayer Manual? 0 Play Time 00:31:58 Cumulative 6.0 hours Start 2021.08.24 @ 11:23:43 End 2021.08.25 @ 05:44:50 Sessions 4 Manual Loads 0 Difficulty Rogue Special Mode None Game No. 14 Rogue 14 Adventurer 0 Explorer 0 Win Type - Total 0 Types 0/0/0/0/0/0/0/0/0 Lore% 3 Gallery% 12 Achievement% 9 Wizard Run 0 Options --------- ASCII 0 Keyboard 0 Movement Arrows Keybinds 0 Fullscreen 1 Font 18/SmallcapsGlow Map View 76x50 Tactical HUD 0 Map Filters NONE Filters NONE Steam 1 RUN: 703439a1-4295-46ab-82cf-726c4076d7d9